[Event "Titled Tuesday Blitz November 07 Early 2023"]
[White "ssgm49"]
[Black "FuenfgegenWilly"]
[WhiteElo "2102"]
[BlackElo "2403"]
[Result "1-0"]
[Round "5"]
[TimeControl "180+1"]
[Date "2023.11.07"]
[WhiteClock "0:01:08"]
[BlackClock "0:01:11"]
[Board "159"]

1. e4 {[%clk 0:02:55]}  c5 {[%clk 0:02:59]} 2. Nf3 {[%clk 0:02:52]}  e6 {[%clk 0:02:59]} 3. b3 {[%clk 0:02:50]}  b6 {[%clk 0:02:56]} 4. Bb2 {[%clk 0:02:35]}  Bb7 {[%clk 0:02:54]} 5. Nc3 {[%clk 0:02:35]}  Nc6 {[%clk 0:02:52]} 6. d4 {[%clk 0:02:35]}  cxd4 {[%clk 0:02:52]} 7. Nxd4 {[%clk 0:02:34]}  Nf6 {[%clk 0:02:52]} 8. Nxc6 {[%clk 0:02:32]}  Bxc6 {[%clk 0:02:53]} 9. Bd3 {[%clk 0:02:29]}  Qc7 {[%clk 0:02:51]} 10. Qe2 {[%clk 0:02:19]}  Bb4 {[%clk 0:02:41]} 11. O-O {[%clk 0:02:11]}  e5 {[%clk 0:02:15]} 12. Nd5 {[%clk 0:02:03]}  Bxd5 {[%clk 0:02:09]} 13. exd5 {[%clk 0:02:03]}  d6 {[%clk 0:02:07]} 14. c3 {[%clk 0:01:54]}  Bxc3 {[%clk 0:02:00]} 15. Rfc1 {[%clk 0:01:47]}  Nxd5 {[%clk 0:01:58]} 16. Qe4 {[%clk 0:01:35]}  Bxb2 {[%clk 0:01:47]} 17. Rxc7 {[%clk 0:01:29]}  Nxc7 {[%clk 0:01:48]} 18. Qc6+ {[%clk 0:01:23]}  Kf8 {[%clk 0:01:36]} 19. Rb1 {[%clk 0:01:15]}  Ba3 {[%clk 0:01:27]} 20. Qxc7 {[%clk 0:01:13]}  h5 {[%clk 0:01:11]} 21. Bc4 {[%clk 0:01:08]} 1-0


[Site "https://www.chess.com"]

[Event "Titled Tuesday Blitz November 07 Early 2023"]
[White "EvgenyBurmakin"]
[Black "Herzog2012"]
[WhiteElo "2371"]
[BlackElo "2569"]
[Result "0-1"]
[Round "5"]
[TimeControl "180+1"]
[Date "2023.11.07"]
[WhiteClock "0:00:06"]
[BlackClock "0:00:07"]
[Board "165"]

1. e4 {[%clk 0:03:00]}  c5 {[%clk 0:02:53]} 2. Nc3 {[%clk 0:03:00]}  Nc6 {[%clk 0:02:46]} 3. Bb5 {[%clk 0:03:00]}  g6 {[%clk 0:02:45]} 4. Bxc6 {[%clk 0:03:00]}  dxc6 {[%clk 0:02:42]} 5. f4 {[%clk 0:03:00]}  Bg7 {[%clk 0:02:40]} 6. Nf3 {[%clk 0:03:00]}  Nf6 {[%clk 0:02:36]} 7. O-O {[%clk 0:02:58]}  O-O {[%clk 0:02:35]} 8. d3 {[%clk 0:02:58]}  b6 {[%clk 0:02:28]} 9. Qe1 {[%clk 0:02:58]}  Bg4 {[%clk 0:02:16]} 10. Qh4 {[%clk 0:02:54]}  Bxf3 {[%clk 0:02:16]} 11. Rxf3 {[%clk 0:02:54]}  Qd7 {[%clk 0:02:12]} 12. f5 {[%clk 0:02:45]}  c4 {[%clk 0:02:01]} 13. e5 {[%clk 0:02:22]}  Nd5 {[%clk 0:01:38]} 14. Nxd5 {[%clk 0:02:18]}  Qxd5 {[%clk 0:01:21]} 15. f6 {[%clk 0:02:12]}  exf6 {[%clk 0:01:08]} 16. exf6 {[%clk 0:02:13]}  Bh8 {[%clk 0:01:08]} 17. Bg5 {[%clk 0:01:56]}  cxd3 {[%clk 0:01:01]} 18. cxd3 {[%clk 0:01:56]}  Rfe8 {[%clk 0:00:58]} 19. Rh3 {[%clk 0:01:18]}  h5 {[%clk 0:00:57]} 20. Rf1 {[%clk 0:00:48]}  Re2 {[%clk 0:00:49]} 21. Rg3 {[%clk 0:00:46]}  Rae8 {[%clk 0:00:33]} 22. Qf4 {[%clk 0:00:36]}  Qc5+ {[%clk 0:00:24]} 23. d4 {[%clk 0:00:32]}  Qd5 {[%clk 0:00:23]} 24. Bh6 {[%clk 0:00:29]}  R2e4 {[%clk 0:00:17]} 25. Qf3 {[%clk 0:00:09]}  Qxd4+ {[%clk 0:00:16]} 26. Kh1 {[%clk 0:00:10]}  Qxf6 {[%clk 0:00:11]} 27. Qxf6 {[%clk 0:00:06]}  Bxf6 {[%clk 0:00:12]} 28. Rgf3 {[%clk 0:00:07]}  Bxb2 {[%clk 0:00:04]} 29. Rxf7 {[%clk 0:00:07]}  Re1 {[%clk 0:00:04]} 30. h3 {[%clk 0:00:06]}  Rxf1+ {[%clk 0:00:04]} 31. Rxf1 {[%clk 0:00:07]}  Bg7 {[%clk 0:00:04]} 32. Bg5 {[%clk 0:00:06]}  Re2 {[%clk 0:00:04]} 33. a4 {[%clk 0:00:06]}  b5 {[%clk 0:00:05]} 34. axb5 {[%clk 0:00:05]}  cxb5 {[%clk 0:00:05]} 35. Rb1 {[%clk 0:00:04]}  Rb2 {[%clk 0:00:05]} 36. Rc1 {[%clk 0:00:05]}  b4 {[%clk 0:00:05]} 37. Rc8+ {[%clk 0:00:04]}  Kh7 {[%clk 0:00:05]} 38. Rc7 {[%clk 0:00:05]}  Rb1+ {[%clk 0:00:05]} 39. Kh2 {[%clk 0:00:05]}  Kg8 {[%clk 0:00:05]} 40. Rc8+ {[%clk 0:00:04]}  Kf7 {[%clk 0:00:03]} 41. Rc7+ {[%clk 0:00:05]}  Kf8 {[%clk 0:00:03]} 42. Rc8+ {[%clk 0:00:04]}  Kf7 {[%clk 0:00:03]} 43. Rc7+ {[%clk 0:00:05]}  Kg8 {[%clk 0:00:04]} 44. Rc8+ {[%clk 0:00:05]}  Bf8 {[%clk 0:00:04]} 45. Be7 {[%clk 0:00:04]}  Rf1 {[%clk 0:00:05]} 46. Bxb4 {[%clk 0:00:04]}  Kg7 {[%clk 0:00:05]} 47. Rc7+ {[%clk 0:00:04]}  Kh6 {[%clk 0:00:02]} 48. Bd2+ {[%clk 0:00:04]}  g5 {[%clk 0:00:02]} 49. Rxa7 {[%clk 0:00:03]}  Bd6+ {[%clk 0:00:02]} 50. g3 {[%clk 0:00:03]}  Rf2+ {[%clk 0:00:02]} 51. Kg1 {[%clk 0:00:03]}  Rxd2 {[%clk 0:00:03]} 52. Ra6 {[%clk 0:00:04]}  h4 {[%clk 0:00:03]} 53. gxh4 {[%clk 0:00:03]}  gxh4 {[%clk 0:00:03]} 54. Kh1 {[%clk 0:00:04]}  Kh5 {[%clk 0:00:03]} 55. Ra5+ {[%clk 0:00:03]}  Kg6 {[%clk 0:00:04]} 56. Ra7 {[%clk 0:00:03]}  Rh2+ {[%clk 0:00:03]} 57. Kg1 {[%clk 0:00:03]}  Rxh3 {[%clk 0:00:03]} 58. Ra6 {[%clk 0:00:03]}  Rd3 {[%clk 0:00:04]} 59. Kf2 {[%clk 0:00:04]}  Rd5 {[%clk 0:00:03]} 60. Kg2 {[%clk 0:00:04]}  Kg5 {[%clk 0:00:04]} 61. Kh3 {[%clk 0:00:04]}  Rd3+ {[%clk 0:00:04]} 62. Kg2 {[%clk 0:00:04]}  h3+ {[%clk 0:00:04]} 63. Kg1 {[%clk 0:00:04]}  Rd1+ {[%clk 0:00:04]} 64. Kf2 {[%clk 0:00:04]}  h2 {[%clk 0:00:05]} 65. Ra5+ {[%clk 0:00:04]}  Kg6 {[%clk 0:00:05]} 66. Ra3 {[%clk 0:00:02]}  h1=Q {[%clk 0:00:04]} 67. Rg3+ {[%clk 0:00:03]}  Bxg3+ {[%clk 0:00:04]} 68. Kxg3 {[%clk 0:00:04]}  Rf1 {[%clk 0:00:04]} 69. Kg4 {[%clk 0:00:04]}  Qh5+ {[%clk 0:00:05]} 70. Kg3 {[%clk 0:00:04]}  Rf3+ {[%clk 0:00:06]} 71. Kg2 {[%clk 0:00:05]}  Qh3+ {[%clk 0:00:07]} 72. Kg1 {[%clk 0:00:06]}  Rf1# {[%clk 0:00:07]} 0-1


[Site "https://www.chess.com"]

[Event "Titled Tuesday Blitz November 07 Early 2023"]
[White "Spichkin, Alexander"]
[Black "Derjabin, Ilja"]
[WhiteFideId "4144074"]
[BlackFideId "14104768"]
[WhiteElo "2359"]
[BlackElo "2550"]
[Result "0-1"]
[Round "5"]
[TimeControl "180+1"]
[Date "2023.11.07"]
[WhiteClock "0:01:21"]
[BlackClock "0:00:49"]
[Board "166"]

1. f4 {[%clk 0:02:53]}  g6 {[%clk 0:02:57]} 2. Nf3 {[%clk 0:02:52]}  Bg7 {[%clk 0:02:57]} 3. d3 {[%clk 0:02:53]}  d5 {[%clk 0:02:57]} 4. e3 {[%clk 0:02:52]}  c5 {[%clk 0:02:56]} 5. Be2 {[%clk 0:02:53]}  Nc6 {[%clk 0:02:56]} 6. O-O {[%clk 0:02:53]}  Nh6 {[%clk 0:02:56]} 7. Qe1 {[%clk 0:02:51]}  O-O {[%clk 0:02:56]} 8. c3 {[%clk 0:02:47]}  d4 {[%clk 0:02:44]} 9. cxd4 {[%clk 0:02:46]}  cxd4 {[%clk 0:02:44]} 10. e4 {[%clk 0:02:47]}  Ng4 {[%clk 0:02:41]} 11. h3 {[%clk 0:02:43]}  Ne3 {[%clk 0:02:40]} 12. Bxe3 {[%clk 0:02:43]}  dxe3 {[%clk 0:02:41]} 13. Nc3 {[%clk 0:02:43]}  Nd4 {[%clk 0:02:31]} 14. Nxd4 {[%clk 0:02:38]}  Qxd4 {[%clk 0:02:31]} 15. e5 {[%clk 0:02:37]}  Bf5 {[%clk 0:02:27]} 16. Rd1 {[%clk 0:02:34]}  Rfd8 {[%clk 0:02:26]} 17. Kh1 {[%clk 0:02:32]}  Rac8 {[%clk 0:02:23]} 18. Bf3 {[%clk 0:02:26]}  b6 {[%clk 0:02:20]} 19. Ne4 {[%clk 0:02:20]}  Qxb2 {[%clk 0:02:05]} 20. Qxe3 {[%clk 0:02:19]}  Qxa2 {[%clk 0:01:57]} 21. Ng3 {[%clk 0:02:18]}  Be6 {[%clk 0:01:47]} 22. d4 {[%clk 0:02:18]}  Bh6 {[%clk 0:01:38]} 23. Rd2 {[%clk 0:01:59]}  Qb3 {[%clk 0:01:33]} 24. Qxb3 {[%clk 0:01:45]}  Bxb3 {[%clk 0:01:33]} 25. Be4 {[%clk 0:01:43]}  a5 {[%clk 0:01:25]} 26. d5 {[%clk 0:01:43]}  a4 {[%clk 0:01:23]} 27. d6 {[%clk 0:01:43]}  exd6 {[%clk 0:01:21]} 28. exd6 {[%clk 0:01:43]}  Bf8 {[%clk 0:01:16]} 29. d7 {[%clk 0:01:38]}  Rc7 {[%clk 0:01:13]} 30. f5 {[%clk 0:01:38]}  Rcxd7 {[%clk 0:01:11]} 31. Rdf2 {[%clk 0:01:38]}  Bc5 {[%clk 0:01:10]} 32. Rf3 {[%clk 0:01:36]}  Rd1 {[%clk 0:01:03]} 33. fxg6 {[%clk 0:01:36]}  Rxf1+ {[%clk 0:01:02]} 34. Rxf1 {[%clk 0:01:35]}  hxg6 {[%clk 0:01:03]} 35. Ne2 {[%clk 0:01:29]}  Bc4 {[%clk 0:01:00]} 36. Bf3 {[%clk 0:01:28]}  Rd2 {[%clk 0:00:57]} 37. Re1 {[%clk 0:01:26]}  Bf2 {[%clk 0:00:55]} 38. Rf1 {[%clk 0:01:27]}  Bxe2 {[%clk 0:00:54]} 39. Rxf2 {[%clk 0:01:27]}  Rd1+ {[%clk 0:00:54]} 40. Kh2 {[%clk 0:01:27]}  Bxf3 {[%clk 0:00:55]} 41. Rxf3 {[%clk 0:01:28]}  b5 {[%clk 0:00:55]} 42. Kg3 {[%clk 0:01:27]}  b4 {[%clk 0:00:53]} 43. Rf4 {[%clk 0:01:26]}  Rb1 {[%clk 0:00:53]} 44. Rf6 {[%clk 0:01:25]}  a3 {[%clk 0:00:53]} 45. Ra6 {[%clk 0:01:25]}  Rb2 {[%clk 0:00:48]} 46. Kf3 {[%clk 0:01:25]}  a2 {[%clk 0:00:48]} 47. Ke3 {[%clk 0:01:24]}  b3 {[%clk 0:00:48]} 48. Kd3 {[%clk 0:01:21]}  Rb1 {[%clk 0:00:49]} 0-1


[Site "https://www.chess.com"]

[Event "Titled Tuesday Blitz November 07 Early 2023"]
[White "Bazilius, Augustinas"]
[Black "secrethawk1"]
[WhiteFideId "12832251"]
[WhiteElo "2511"]
[BlackElo "2346"]
[Result "0-1"]
[Round "5"]
[TimeControl "180+1"]
[Date "2023.11.07"]
[WhiteClock "0:00:00"]
[BlackClock "0:00:47"]
[Board "169"]

1. d4 {[%clk 0:03:00]}  Nf6 {[%clk 0:02:58]} 2. c4 {[%clk 0:03:00]}  e6 {[%clk 0:02:58]} 3. Nf3 {[%clk 0:03:01]}  b6 {[%clk 0:02:57]} 4. g3 {[%clk 0:03:01]}  Bb7 {[%clk 0:02:57]} 5. Bg2 {[%clk 0:03:01]}  Be7 {[%clk 0:02:56]} 6. O-O {[%clk 0:03:01]}  O-O {[%clk 0:02:55]} 7. Nc3 {[%clk 0:03:01]}  Ne4 {[%clk 0:02:53]} 8. Qc2 {[%clk 0:03:00]}  f5 {[%clk 0:02:53]} 9. Rd1 {[%clk 0:02:55]}  Nxc3 {[%clk 0:02:51]} 10. Qxc3 {[%clk 0:02:53]}  a5 {[%clk 0:02:44]} 11. d5 {[%clk 0:02:50]}  exd5 {[%clk 0:02:42]} 12. cxd5 {[%clk 0:02:51]}  d6 {[%clk 0:02:39]} 13. Nd4 {[%clk 0:02:50]}  Bf6 {[%clk 0:02:39]} 14. Qc2 {[%clk 0:02:47]}  Bxd4 {[%clk 0:02:37]} 15. Rxd4 {[%clk 0:02:48]}  Nd7 {[%clk 0:02:36]} 16. Bf4 {[%clk 0:02:36]}  Nc5 {[%clk 0:02:29]} 17. Rc1 {[%clk 0:02:34]}  Qf6 {[%clk 0:02:27]} 18. Be3 {[%clk 0:02:25]}  Rfe8 {[%clk 0:02:25]} 19. a3 {[%clk 0:02:24]}  a4 {[%clk 0:02:24]} 20. Rf4 {[%clk 0:02:06]}  g6 {[%clk 0:02:17]} 21. Bxc5 {[%clk 0:01:57]}  bxc5 {[%clk 0:02:11]} 22. e4 {[%clk 0:01:58]}  Ba6 {[%clk 0:01:43]} 23. Bf3 {[%clk 0:00:13]}  Qe5 {[%clk 0:01:38]} 24. Kg2 {[%clk 0:00:07]}  fxe4 {[%clk 0:01:32]} 25. Rxe4 {[%clk 0:00:08]}  Qf6 {[%clk 0:01:32]} 26. Rf4 {[%clk 0:00:08]}  Qg5 {[%clk 0:01:25]} 27. Qxa4 {[%clk 0:00:06]}  Bf1+ {[%clk 0:01:23]} 28. Rxf1 {[%clk 0:00:03]}  Rxa4 {[%clk 0:01:23]} 29. Rxa4 {[%clk 0:00:04]}  Qd2 {[%clk 0:01:21]} 30. b4 {[%clk 0:00:03]}  Rf8 {[%clk 0:01:04]} 31. bxc5 {[%clk 0:00:02]}  Qc2 {[%clk 0:00:50]} 32. Re4 {[%clk 0:00:02]}  Rxf3 {[%clk 0:00:48]} 33. Kxf3 {[%clk 0:00:03]}  Qd3+ {[%clk 0:00:48]} 34. Re3 {[%clk 0:00:03]}  Qxf1 {[%clk 0:00:48]} 35. Re4 {[%clk 0:00:01]}  Qd3+ {[%clk 0:00:47]} 36. Re3 {[%clk 0:00:01]}  Qxd5+ {[%clk 0:00:47]} 37. Ke2 {[%clk 0:00:02]}  Qxc5 {[%clk 0:00:47]} 38. Rc3 {[%clk 0:00:00]}  Qxc3 {[%clk 0:00:47]} 0-1


[Site "https://www.chess.com"]

[Event "Titled Tuesday Blitz November 07 Early 2023"]
[White "Rose, Felix"]
[Black "topce"]
[WhiteFideId "5105722"]
[WhiteElo "2327"]
[BlackElo "2508"]
[Result "0-1"]
[Round "5"]
[TimeControl "180+1"]
[Date "2023.11.07"]
[WhiteClock "0:00:00"]
[BlackClock "0:02:39"]
[Board "173"]

1. e4 {[%clk 0:00:22]}  c5 {[%clk 0:02:58]} 2. Nf3 {[%clk 0:00:20]}  Nc6 {[%clk 0:02:58]} 3. d4 {[%clk 0:00:19]}  cxd4 {[%clk 0:02:59]} 4. Nxd4 {[%clk 0:00:20]}  e5 {[%clk 0:03:00]} 5. Nb5 {[%clk 0:00:18]}  d6 {[%clk 0:03:00]} 6. N1c3 {[%clk 0:00:18]}  a6 {[%clk 0:03:01]} 7. Na3 {[%clk 0:00:18]}  b5 {[%clk 0:03:01]} 8. Nd5 {[%clk 0:00:17]}  Nge7 {[%clk 0:03:02]} 9. c4 {[%clk 0:00:16]}  Nxd5 {[%clk 0:03:02]} 10. cxd5 {[%clk 0:00:14]}  Nd4 {[%clk 0:03:02]} 11. Be3 {[%clk 0:00:09]}  g6 {[%clk 0:03:02]} 12. Be2 {[%clk 0:00:08]}  Bg7 {[%clk 0:02:59]} 13. O-O {[%clk 0:00:08]}  O-O {[%clk 0:02:59]} 14. Nc2 {[%clk 0:00:06]}  Nxc2 {[%clk 0:02:57]} 15. Qxc2 {[%clk 0:00:07]}  Bd7 {[%clk 0:02:57]} 16. Rfc1 {[%clk 0:00:07]}  f5 {[%clk 0:02:57]} 17. f3 {[%clk 0:00:07]}  fxe4 {[%clk 0:02:51]} 18. fxe4 {[%clk 0:00:07]}  Qh4 {[%clk 0:02:48]} 19. Bf3 {[%clk 0:00:06]}  Bh6 {[%clk 0:02:47]} 20. Bxh6 {[%clk 0:00:06]}  Qxh6 {[%clk 0:02:48]} 21. Qe2 {[%clk 0:00:06]}  Rac8 {[%clk 0:02:46]} 22. Rxc8 {[%clk 0:00:06]}  Rxc8 {[%clk 0:02:47]} 23. Qd1 {[%clk 0:00:06]}  Qe3+ {[%clk 0:02:46]} 24. Kh1 {[%clk 0:00:05]}  Rc5 {[%clk 0:02:44]} 25. h3 {[%clk 0:00:06]}  h5 {[%clk 0:02:41]} 26. Kh2 {[%clk 0:00:06]}  h4 {[%clk 0:02:41]} 27. Qe1 {[%clk 0:00:06]}  Qf4+ {[%clk 0:02:40]} 28. Kh1 {[%clk 0:00:07]}  Rc2 {[%clk 0:02:40]} 29. b3 {[%clk 0:00:00]}  Bxh3 {[%clk 0:02:39]} 0-1


[Site "https://www.chess.com"]

[Event "Titled Tuesday Blitz November 07 Early 2023"]
[White "Khater, Sherif"]
[Black "Fernandez Siles, Luis"]
[WhiteFideId "2034280"]
[BlackFideId "2209420"]
[WhiteElo "2492"]
[BlackElo "2323"]
[Result "1-0"]
[Round "5"]
[TimeControl "180+1"]
[Date "2023.11.07"]
[WhiteClock "0:00:11"]
[BlackClock "0:00:02"]
[Board "175"]

1. e4 {[%clk 0:03:00]}  c5 {[%clk 0:02:57]} 2. Nc3 {[%clk 0:03:01]}  g6 {[%clk 0:02:56]} 3. g3 {[%clk 0:03:01]}  Bg7 {[%clk 0:02:56]} 4. Bg2 {[%clk 0:03:02]}  Nc6 {[%clk 0:02:56]} 5. Nge2 {[%clk 0:03:02]}  Nf6 {[%clk 0:02:55]} 6. d3 {[%clk 0:03:03]}  O-O {[%clk 0:02:55]} 7. f4 {[%clk 0:03:03]}  d6 {[%clk 0:02:55]} 8. O-O {[%clk 0:03:03]}  Rb8 {[%clk 0:02:54]} 9. h3 {[%clk 0:03:04]}  Nd4 {[%clk 0:02:53]} 10. Nxd4 {[%clk 0:03:04]}  cxd4 {[%clk 0:02:52]} 11. Ne2 {[%clk 0:03:04]}  Nd7 {[%clk 0:02:50]} 12. h4 {[%clk 0:03:02]}  f5 {[%clk 0:02:41]} 13. h5 {[%clk 0:02:59]}  e6 {[%clk 0:02:39]} 14. hxg6 {[%clk 0:02:59]}  hxg6 {[%clk 0:02:38]} 15. c3 {[%clk 0:02:56]}  dxc3 {[%clk 0:02:10]} 16. bxc3 {[%clk 0:02:54]}  Nf6 {[%clk 0:02:04]} 17. Qb3 {[%clk 0:02:38]}  Ng4 {[%clk 0:01:54]} 18. Nd4 {[%clk 0:02:28]}  Qf6 {[%clk 0:01:48]} 19. Bb2 {[%clk 0:02:03]}  g5 {[%clk 0:01:24]} 20. exf5 {[%clk 0:01:35]}  Qh6 {[%clk 0:01:18]} 21. Nf3 {[%clk 0:01:33]}  gxf4 {[%clk 0:01:12]} 22. fxe6 {[%clk 0:01:27]}  Bxe6 {[%clk 0:01:10]} 23. c4 {[%clk 0:01:24]}  fxg3 {[%clk 0:01:05]} 24. Bxg7 {[%clk 0:01:23]}  Kxg7 {[%clk 0:01:00]} 25. Qb2+ {[%clk 0:01:11]}  Kg8 {[%clk 0:00:58]} 26. Rae1 {[%clk 0:01:08]}  Nf2 {[%clk 0:00:42]} 27. Rxf2 {[%clk 0:00:54]}  gxf2+ {[%clk 0:00:42]} 28. Qxf2 {[%clk 0:00:55]}  Bf5 {[%clk 0:00:33]} 29. Qg3+ {[%clk 0:00:37]}  Qg6 {[%clk 0:00:27]} 30. Qxg6+ {[%clk 0:00:19]}  Bxg6 {[%clk 0:00:27]} 31. Ng5 {[%clk 0:00:16]}  Rbe8 {[%clk 0:00:26]} 32. Bd5+ {[%clk 0:00:16]}  Kh8 {[%clk 0:00:24]} 33. Rb1 {[%clk 0:00:16]}  b6 {[%clk 0:00:23]} 34. Rb2 {[%clk 0:00:16]}  Rf5 {[%clk 0:00:18]} 35. Rh2+ {[%clk 0:00:16]}  Kg7 {[%clk 0:00:18]} 36. Ne6+ {[%clk 0:00:17]}  Kf6 {[%clk 0:00:16]} 37. Nd4 {[%clk 0:00:14]}  Re1+ {[%clk 0:00:15]} 38. Kg2 {[%clk 0:00:14]}  Rg5+ {[%clk 0:00:15]} 39. Kf3 {[%clk 0:00:14]}  Ra1 {[%clk 0:00:14]} 40. Ke3 {[%clk 0:00:13]}  Re1+ {[%clk 0:00:13]} 41. Kd2 {[%clk 0:00:13]}  Ra1 {[%clk 0:00:13]} 42. Rf2+ {[%clk 0:00:14]}  Ke7 {[%clk 0:00:11]} 43. Nc6+ {[%clk 0:00:14]}  Kd7 {[%clk 0:00:10]} 44. Kc3 {[%clk 0:00:15]}  Rg3 {[%clk 0:00:09]} 45. Rd2 {[%clk 0:00:14]}  Rc1+ {[%clk 0:00:08]} 46. Kd4 {[%clk 0:00:14]}  Rf1 {[%clk 0:00:07]} 47. Rh2 {[%clk 0:00:13]}  Rf4+ {[%clk 0:00:07]} 48. Kc3 {[%clk 0:00:13]}  Rxd3+ {[%clk 0:00:07]} 49. Kb4 {[%clk 0:00:13]}  a5+ {[%clk 0:00:07]} 50. Kb5 {[%clk 0:00:13]}  Be8 {[%clk 0:00:08]} 51. Kxb6 {[%clk 0:00:13]}  Rxd5 {[%clk 0:00:03]} 52. cxd5 {[%clk 0:00:12]}  Rb4+ {[%clk 0:00:03]} 53. Nxb4 {[%clk 0:00:11]}  axb4 {[%clk 0:00:03]} 54. Rh7+ {[%clk 0:00:12]}  Kd8 {[%clk 0:00:02]} 55. Rh4 {[%clk 0:00:11]} 1-0


[Site "https://www.chess.com"]

[Event "Titled Tuesday Blitz November 07 Early 2023"]
[White "Minina, Veronika"]
[Black "Rama, Tejas"]
[WhiteFideId "4174780"]
[BlackFideId "30907381"]
[WhiteElo "2318"]
[BlackElo "2488"]
[Result "0-1"]
[Round "5"]
[TimeControl "180+1"]
[Date "2023.11.07"]
[WhiteClock "0:00:00"]
[BlackClock "0:00:17"]
[Board "176"]

1. Nf3 {[%clk 0:02:50]}  Nf6 {[%clk 0:02:54]} 2. g3 {[%clk 0:02:50]}  g5 {[%clk 0:02:51]} 3. d4 {[%clk 0:02:40]}  h6 {[%clk 0:02:50]} 4. c4 {[%clk 0:02:40]}  Bg7 {[%clk 0:02:48]} 5. Nc3 {[%clk 0:02:40]}  d5 {[%clk 0:02:45]} 6. cxd5 {[%clk 0:02:36]}  Nxd5 {[%clk 0:02:46]} 7. Bg2 {[%clk 0:02:35]}  Nxc3 {[%clk 0:02:43]} 8. bxc3 {[%clk 0:02:36]}  c5 {[%clk 0:02:40]} 9. O-O {[%clk 0:02:16]}  O-O {[%clk 0:02:35]} 10. e4 {[%clk 0:02:10]}  cxd4 {[%clk 0:02:26]} 11. cxd4 {[%clk 0:02:11]}  Nc6 {[%clk 0:02:09]} 12. Be3 {[%clk 0:02:11]}  g4 {[%clk 0:02:07]} 13. Nh4 {[%clk 0:02:03]}  Nxd4 {[%clk 0:02:05]} 14. Rb1 {[%clk 0:01:59]}  Be6 {[%clk 0:01:36]} 15. Rxb7 {[%clk 0:01:49]}  h5 {[%clk 0:01:35]} 16. a4 {[%clk 0:01:38]}  Bc4 {[%clk 0:01:24]} 17. Re1 {[%clk 0:01:27]}  e6 {[%clk 0:00:57]} 18. h3 {[%clk 0:01:16]}  Ba6 {[%clk 0:00:50]} 19. Rb1 {[%clk 0:01:01]}  Nc6 {[%clk 0:00:40]} 20. hxg4 {[%clk 0:00:45]}  Qxd1 {[%clk 0:00:39]} 21. Rexd1 {[%clk 0:00:46]}  hxg4 {[%clk 0:00:40]} 22. Rd6 {[%clk 0:00:40]}  Rac8 {[%clk 0:00:40]} 23. e5 {[%clk 0:00:38]}  Nb8 {[%clk 0:00:25]} 24. Bxa7 {[%clk 0:00:30]}  Bxe5 {[%clk 0:00:23]} 25. Bxb8 {[%clk 0:00:24]}  Rxb8 {[%clk 0:00:20]} 26. Rxb8 {[%clk 0:00:17]}  Bxd6 {[%clk 0:00:21]} 27. Rb6 {[%clk 0:00:17]}  Bc5 {[%clk 0:00:19]} 28. Rxa6 {[%clk 0:00:17]}  Rb8 {[%clk 0:00:19]} 29. Bf1 {[%clk 0:00:16]}  Rb2 {[%clk 0:00:19]} 30. Ra8+ {[%clk 0:00:14]}  Kg7 {[%clk 0:00:19]} 31. Bb5 {[%clk 0:00:12]}  Bxf2+ {[%clk 0:00:19]} 32. Kf1 {[%clk 0:00:12]}  Bxg3 {[%clk 0:00:19]} 33. Ng2 {[%clk 0:00:12]}  Rf2+ {[%clk 0:00:17]} 34. Kg1 {[%clk 0:00:12]}  Rb2 {[%clk 0:00:18]} 35. Ne3 {[%clk 0:00:10]}  Bf2+ {[%clk 0:00:17]} 36. Kf1 {[%clk 0:00:10]}  Bxe3 {[%clk 0:00:18]} 37. Be8 {[%clk 0:00:00]}  g3 {[%clk 0:00:17]} 0-1


[Site "https://www.chess.com"]

[Event "Titled Tuesday Blitz November 07 Early 2023"]
[White "Buchenau, Frank"]
[Black "Ardila, Oscar Humberto"]
[WhiteFideId "4604350"]
[BlackFideId "4404742"]
[WhiteElo "2483"]
[BlackElo "2311"]
[Result "0-1"]
[Round "5"]
[TimeControl "180+1"]
[Date "2023.11.07"]
[WhiteClock "0:00:00"]
[BlackClock "0:00:28"]
[Board "177"]

1. e4 {[%clk 0:03:00]}  e5 {[%clk 0:03:00]} 2. Bc4 {[%clk 0:03:00]}  Nf6 {[%clk 0:03:00]} 3. d3 {[%clk 0:03:00]}  Bc5 {[%clk 0:02:59]} 4. Nf3 {[%clk 0:03:00]}  d6 {[%clk 0:02:59]} 5. O-O {[%clk 0:03:00]}  Be6 {[%clk 0:02:59]} 6. Bxe6 {[%clk 0:02:57]}  fxe6 {[%clk 0:02:59]} 7. c3 {[%clk 0:02:57]}  O-O {[%clk 0:02:59]} 8. d4 {[%clk 0:02:54]}  exd4 {[%clk 0:02:57]} 9. cxd4 {[%clk 0:02:54]}  Bb6 {[%clk 0:02:57]} 10. Nc3 {[%clk 0:02:53]}  c6 {[%clk 0:02:56]} 11. e5 {[%clk 0:02:50]}  dxe5 {[%clk 0:02:54]} 12. dxe5 {[%clk 0:02:41]}  Qxd1 {[%clk 0:02:53]} 13. Rxd1 {[%clk 0:02:40]}  Nd5 {[%clk 0:02:54]} 14. Ne4 {[%clk 0:02:39]}  Nd7 {[%clk 0:02:47]} 15. Bd2 {[%clk 0:02:13]}  Nc5 {[%clk 0:02:35]} 16. Nxc5 {[%clk 0:01:56]}  Bxc5 {[%clk 0:02:34]} 17. Rac1 {[%clk 0:01:55]}  Bb6 {[%clk 0:02:32]} 18. Rc4 {[%clk 0:01:35]}  Rf5 {[%clk 0:02:28]} 19. Re1 {[%clk 0:01:29]}  Raf8 {[%clk 0:02:28]} 20. Re2 {[%clk 0:01:21]}  h6 {[%clk 0:02:25]} 21. h4 {[%clk 0:01:20]}  Kh7 {[%clk 0:02:11]} 22. Rg4 {[%clk 0:01:18]}  g6 {[%clk 0:02:01]} 23. a4 {[%clk 0:01:11]}  a6 {[%clk 0:01:49]} 24. b4 {[%clk 0:01:08]}  Nf4 {[%clk 0:01:39]} 25. Bxf4 {[%clk 0:01:03]}  Rxf4 {[%clk 0:01:39]} 26. Re4 {[%clk 0:01:02]}  Rxe4 {[%clk 0:01:31]} 27. Rxe4 {[%clk 0:01:02]}  Rd8 {[%clk 0:01:31]} 28. Rf4 {[%clk 0:00:51]}  Kg7 {[%clk 0:01:23]} 29. Rf6 {[%clk 0:00:50]}  Re8 {[%clk 0:01:23]} 30. Kf1 {[%clk 0:00:40]}  Bd8 {[%clk 0:01:22]} 31. Rf4 {[%clk 0:00:39]}  Rf8 {[%clk 0:01:23]} 32. Rd4 {[%clk 0:00:38]}  Bb6 {[%clk 0:01:14]} 33. Rd6 {[%clk 0:00:37]}  Rd8 {[%clk 0:00:47]} 34. Rxe6 {[%clk 0:00:34]}  Kf7 {[%clk 0:00:47]} 35. Rf6+ {[%clk 0:00:33]}  Kg7 {[%clk 0:00:48]} 36. Rd6 {[%clk 0:00:27]}  Kf7 {[%clk 0:00:45]} 37. Rxd8 {[%clk 0:00:21]}  Bxd8 {[%clk 0:00:44]} 38. Ke2 {[%clk 0:00:19]}  Ke6 {[%clk 0:00:45]} 39. Ke3 {[%clk 0:00:18]}  Kd5 {[%clk 0:00:45]} 40. Kd3 {[%clk 0:00:14]}  Be7 {[%clk 0:00:45]} 41. g3 {[%clk 0:00:14]}  Bxb4 {[%clk 0:00:45]} 42. Ke3 {[%clk 0:00:11]}  Bc5+ {[%clk 0:00:44]} 43. Kf4 {[%clk 0:00:11]}  Bxf2 {[%clk 0:00:43]} 44. h5 {[%clk 0:00:11]}  gxh5 {[%clk 0:00:39]} 45. Kf5 {[%clk 0:00:09]}  b5 {[%clk 0:00:39]} 46. e6 {[%clk 0:00:09]}  Bc5 {[%clk 0:00:39]} 47. axb5 {[%clk 0:00:08]}  cxb5 {[%clk 0:00:39]} 48. Ne5 {[%clk 0:00:06]}  b4 {[%clk 0:00:37]} 49. Nd3 {[%clk 0:00:06]}  Be7 {[%clk 0:00:36]} 50. Nf4+ {[%clk 0:00:04]}  Kc4 {[%clk 0:00:32]} 51. Ke5 {[%clk 0:00:01]}  b3 {[%clk 0:00:30]} 52. Nd5 {[%clk 0:00:00]}  Bc5 {[%clk 0:00:28]} 0-1


[Site "https://www.chess.com"]